bitfinex/quotes_SOLUSD_20220211
["timestamp","ask_amount","ask_price","bid_price","bid_amount"]
[1644542627364,45.8674833,105.55,105.46,44.9657529]
[1644542627565,50.6064833,105.55,105.46,26.5617529]
[1644542627764,50.6064833,105.55,105.46,40.7859529]
[1644542628365,50.6064833,105.55,105.46,48.56862321]
[1644542628564,45.8674833,105.55,105.46,48.56862321]
[1644542628765,51.8674833,105.55,105.46,59.69862321]
[1644542629066,45.8674833,105.55,105.46,59.69862321]
[1644542629266,45.8674833,105.55,105.46,59.94862321]
[1644542629665,45.8674833,105.55,105.48,50.3240995]
[1644542630106,4.739,105.58,105.49,1.78267031]
[1644542630284,38.3104,105.6,105.49,23.89967031]
[1644542630687,38.3104,105.6,105.5,1.78267031]
[1644542630885,38.3104,105.6,105.51,14.2185]
[1644542631084,38.3104,105.6,105.51,42.40399957]
[1644542631085,38.20921881,105.59,105.51,42.40399957]
[1644542631690,38.20921881,105.59,105.51,44.18666988]
[1644542631886,38.20921881,105.59,105.51,50.18666988]
[1644542632288,42.94621881,105.59,105.51,44.18666988]
[1644542632690,38.20921881,105.59,105.51,44.18666988]
[1644542633089,38.20921881,105.59,105.51,16.00117031]
[1644542635191,38.20921881,105.59,105.51,14.2185]
[1644542635793,46.87472249,105.59,105.51,14.2185]
[1644542635997,44.20921881,105.59,105.51,14.2185]
[1644542637497,58.42901881,105.59,105.51,14.2185]
[1644542638398,61.09452249,105.59,105.51,14.2185]
[1644542639099,63.32574403,105.59,105.49,18.9578]
[1644542639299,10.09314632,105.58,105.49,4.737]
[1644542639501,7.40250368,105.58,105.49,4.737]
[1644542639698,16.45452154,105.57,105.49,4.737]
[1644542639899,4.737,105.56,105.49,4.737]
[1644542640098,36.06724424,105.55,105.49,4.737]
[1644542641304,36.06724424,105.55,105.48,14.2233]
[1644542643301,42.06724424,105.55,105.48,14.2233]
[1644542646005,42.06724424,105.55,105.48,41.62915204]
[1644542646205,42.06724424,105.55,105.48,53.00915204]
[1644542646407,42.06724424,105.55,105.48,59.00915204]
[1644542646807,42.06724424,105.55,105.49,4.738]
[1644542647007,42.06724424,105.55,105.49,14.2221]
[1644542648609,42.06724424,105.55,105.48,16.00657031]
[1644542649710,42.06724424,105.55,105.47,4.738]
[1644542649711,4.738,105.54,105.47,4.738]
[1644542650308,7.40350368,105.54,105.47,4.738]
[1644542650509,36.25273327,105.53,105.47,4.738]
[1644542650710,36.25273327,105.53,105.42,45.49038264]
[1644542650910,46.75724295,105.51,105.45,23.53601643]
[1644542651210,46.75724295,105.51,105.45,28.27601643]
[1644542651413,46.75724295,105.51,105.46,1.78267031]
[1644542651713,46.75724295,105.51,105.44,1.78267031]
[1644542651910,46.75724295,105.51,105.46,14.2258]
[1644542652315,46.75724295,105.51,105.45,1.78267031]
[1644542652519,46.75724295,105.51,105.43,1.78267031]
[1644542652711,52.75724295,105.51,105.43,1.78267031]
[1644542653113,66.98714295,105.51,105.43,1.78267031]
[1644542653314,66.98714295,105.51,105.42,29.5363]
[1644542653518,4.74,105.5,105.42,29.5363]
[1644542653916,4.74,105.5,105.42,4.74]
[1644542654116,58.26843286,105.49,105.42,4.74]
[1644542654318,4.741,105.48,105.42,4.74]
[1644542654518,37.145614,105.47,105.42,4.74]
[1644542654915,41.886614,105.47,105.42,4.74]
[1644542655115,37.145614,105.47,105.42,4.74]
[1644542655317,14.16050368,105.51,105.42,4.74]
[1644542655318,40.41397276,105.45,105.42,4.74]
[1644542655717,29.7409,105.5,105.43,6.06439994]
[1644542655917,2.66550368,105.51,105.43,6.06439994]
[1644542655918,4.742,105.51,105.43,6.06439994]
[1644542656133,4.74,105.52,105.43,6.06439994]
[1644542656840,14.232,105.5,105.43,6.06439994]
[1644542657135,46.94056461,105.49,105.43,6.06439994]
[1644542657535,52.94056461,105.49,105.43,6.06439994]
[1644542658136,67.17366461,105.49,105.43,6.06439994]
[1644542661242,67.17366461,105.49,105.41,14.2575]
[1644542661439,18.9756,105.48,105.41,0.024]
[1644542661637,14.2346,105.48,105.41,0.024]
[1644542662240,38.01409895,105.47,105.41,0.024]
[1644542664042,52.24909895,105.47,105.41,0.024]
[1644542664442,52.24909895,105.47,105.4,4.741]
[1644542664642,4.742,105.46,105.4,4.741]
[1644542664845,37.02561197,105.45,105.4,4.741]
[1644542665044,37.02561197,105.45,105.38,4.766]
[1644542665242,37.02561197,105.45,105.38,10.766]
[1644542665443,51.26311197,105.45,105.38,4.766]
[1644542665644,57.26311197,105.45,105.37,48.1984]
[1644542665844,57.26311197,105.45,105.37,48.2224]
[1644542666046,57.26311197,105.45,105.37,48.1984]
[1644542666245,4.743,105.44,105.37,48.1984]
[1644542666446,43.17864668,105.43,105.37,48.1984]
[1644542667745,43.0907206,105.43,105.36,0.024]
[1644542668348,43.0907206,105.43,105.34,0.024]
[1644542668550,62.0751206,105.43,105.34,0.024]
[1644542668748,57.3311206,105.43,105.34,1.80667031]
[1644542668953,57.3311206,105.43,105.35,0.024]
[1644542669149,62.0751206,105.43,105.35,0.024]
[1644542669350,68.0751206,105.43,105.35,0.024]
[1644542670158,70.30634214,105.43,105.35,0.024]
[1644542670351,81.43634214,105.43,105.33,0.024]
[1644542670550,82.77870151,105.43,105.33,0.024]
[1644542672349,131.39580151,105.43,105.31,0.024]
[1644542672754,131.39580151,105.43,105.31,22.01021727]
[1644542672952,131.39580151,105.43,105.32,0.024]
[1644542673251,130.05344214,105.43,105.32,0.024]
[1644542674254,0.45,105.41,105.32,0.024]
[1644542674453,14.2518,105.39,105.32,0.024]
[1644542674657,4.745,105.38,105.28,0.024]
[1644542674854,49.73692154,105.4,105.29,18.9952]
[1644542675054,40.07463585,105.39,105.3,0.024]
[1644542675655,46.07463585,105.39,105.3,0.024]
[1644542676755,14.2477,105.38,105.3,14.272]
[1644542676955,42.14342487,105.37,105.31,0.024]
[1644542677155,42.14342487,105.37,105.3,14.272]
[1644542679167,14.2477,105.38,105.31,20.17347335]
[1644542679368,4.746,105.42,105.31,51.82387335]
[1644542679668,4.745,105.44,105.32,1.80667031]
[1644542679867,1.34235937,105.45,105.32,1.80667031]
[1644542679868,6.08735937,105.45,105.33,11.154]
[1644542680070,4.745,105.45,105.34,22.6725]
[1644542680269,41.96514411,105.44,105.35,39.88127078]
[1644542680468,14.2409,105.43,105.36,0.024]
[1644542680668,38.91375181,105.42,105.36,0.024]
[1644542680867,38.91375181,105.42,105.35,54.09817078]
[1644542680868,38.91375181,105.42,105.35,39.85727078]
[1644542681569,38.91375181,105.42,105.34,24.45517031]
[1644542681769,38.91375181,105.42,105.36,14.2409]
[1644542682589,59.15615181,105.42,105.35,4.768]
[1644542682790,59.15615181,105.42,105.35,0.024]
[1644542685193,35.62274532,105.4,105.35,0.024]
[1644542685390,49.86774532,105.4,105.34,22.6485]
[1644542686295,55.86774532,105.4,105.34,22.6485]
[1644542690001,55.86774532,105.4,105.33,14.2691]
[1644542693300,55.86774532,105.4,105.33,0.024]
[1644542695905,4.745,105.39,105.33,0.024]
[1644542696113,14.2487,105.37,105.31,23.8271]
[1644542696309,14.2487,105.37,105.3,38.455]
[1644542696505,18.9947,105.37,105.3,24.2063]
[1644542696705,18.9947,105.37,105.3,24.1823]
[1644542697208,48.55243203,105.36,105.3,24.1823]
[1644542697407,14.2515,105.35,105.3,24.1823]
[1644542697605,46.17818029,105.34,105.29,14.2512]
[1644542697805,46.17818029,105.34,105.29,20.2512]
[1644542700815,52.17818029,105.34,105.29,20.2512]
[1644542701032,66.43068029,105.34,105.29,20.2512]
[1644542701813,66.43068029,105.34,105.28,38.5703]
[1644542702011,66.43068029,105.34,105.28,38.5463]
[1644542704818,66.43068029,105.34,105.28,44.5463]
[1644542705021,66.43068029,105.34,105.28,24.2936]
[1644542706822,66.43068029,105.34,105.27,16.06077031]
[1644542707023,66.43068029,105.34,105.27,44.72578645]
[1644542707322,66.43068029,105.34,105.27,22.06077031]
[1644542707522,66.43068029,105.34,105.27,16.06077031]
[1644542708537,66.43068029,105.34,105.29,14.2519]
[1644542709137,6.0,105.34,105.29,14.2519]
[1644542709338,24.1349,105.37,105.29,14.2519]
[1644542709538,75.414,105.42,105.29,16.05857031]
[1644542709539,1.34235937,105.39,105.29,16.05857031]
[1644542709741,6.08735937,105.41,105.32,14.2433]
[1644542709940,1.34235937,105.42,105.33,11.154]
[1644542710140,43.67772611,105.41,105.34,105.81]
[1644542710345,43.67772611,105.41,105.34,17.404]
[1644542710539,43.67772611,105.41,105.34,77.21259223]
[1644542710741,43.67772611,105.41,105.35,14.2401]
[1644542711544,45.02008548,105.41,105.35,14.2401]
[1644542711741,43.67772611,105.41,105.35,14.2401]
[1644542712743,63.92122611,105.41,105.34,20.2689]
[1644542712942,70.00758548,105.41,105.34,14.2689]
[1644542713143,65.26358548,105.41,105.34,18.01135982]
[1644542713341,65.26358548,105.41,105.34,6.0]
[1644542713543,4.744,105.4,105.31,15.874]
[1644542713742,46.84178948,105.39,105.31,21.874]
[1644542713946,46.84178948,105.39,105.31,17.13]
[1644542714342,46.84178948,105.39,105.32,15.88344946]
[1644542714743,46.84178948,105.39,105.32,30.13104946]
[1644542714944,46.84178948,105.39,105.32,41.26104946]
[1644542715143,46.84178948,105.39,105.33,4.745]
[1644542715347,46.84178948,105.39,105.32,33.01344946]
[1644542715748,46.84178948,105.39,105.34,14.2443]
[1644542715947,46.84178948,105.39,105.34,25.3743]
[1644542716355,46.84178948,105.39,105.34,14.2443]
[1644542717751,67.08778948,105.39,105.31,4.745]
[1644542717949,4.746,105.38,105.3,59.5798]
[1644542718150,4.746,105.38,105.3,65.5798]
[1644542718551,38.39078217,105.37,105.3,65.5798]
[1644542719152,52.63938217,105.37,105.3,79.8303]
[1644542720752,52.60938217,105.37,105.3,79.8303]
[1644542721051,52.60938217,105.37,105.3,95.90937794]
[1644542722254,52.10938217,105.37,105.3,95.90937794]
[1644542722652,14.2471,105.38,105.31,1.78267031]
[1644542722853,14.2471,105.38,105.33,14.246]
[1644542723053,6.08835937,105.4,105.33,14.246]
[1644542723253,6.08735937,105.41,105.33,14.246]
[1644542723453,1.34235937,105.41,105.33,14.246]
[1644542723655,42.13020103,105.4,105.34,46.14193241]
[1644542723853,1.34235937,105.41,105.34,60.38613241]
[1644542724054,1.34235937,105.41,105.35,11.13]
[1644542724421,1.34235937,105.42,105.35,18.91267031]
[1644542724453,1.34235937,105.43,105.35,18.91267031]
[1644542724653,57.13100368,105.46,105.35,18.91267031]
[1644542724654,1.34235937,105.44,105.35,66.22697031]
[1644542724854,39.47282177,105.43,105.36,18.76339274]
[1644542725053,39.47282177,105.43,105.35,53.0643]
[1644542725253,51.55918114,105.43,105.35,6.0]
[1644542725452,1.34235937,105.42,105.35,6.0]
[1644542725652,6.08635937,105.42,105.34,6.0]
[1644542725853,1.34235937,105.42,105.33,45.7248]
[1644542726053,37.81110242,105.41,105.33,87.55367183]
[1644542726253,37.81110242,105.41,105.33,82.80967183]
[1644542726453,52.05480242,105.41,105.34,14.245]
[1644542726653,52.05480242,105.41,105.34,18.989]
[1644542726856,52.05480242,105.41,105.35,23.07645332]
[1644542727054,52.05480242,105.41,105.34,24.989]
[1644542727254,4.744,105.4,105.34,20.245]
[1644542727653,14.2458,105.39,105.33,14.2465]
[1644542727854,14.2458,105.39,105.32,24.9772]
[1644542728054,53.54702046,105.38,105.32,24.9772]
[1644542728354,48.80202046,105.38,105.32,24.9772]
[1644542729456,63.05022046,105.38,105.3,0.024]
[1644542730054,62.55022046,105.38,105.3,0.024]
[1644542730857,62.55022046,105.38,105.3,14.2744]
[1644542731354,62.55022046,105.38,105.3,39.9130905]
[1644542731559,48.30202046,105.38,105.3,39.9130905]
[1644542731756,54.30202046,105.38,105.3,39.9130905]
[1644542732559,48.30202046,105.38,105.3,39.9130905]
[1644542733557,48.30202046,105.38,105.3,44.6590905]
[1644542735562,48.30202046,105.38,105.3,25.0204]
[1644542736563,48.30202046,105.38,105.3,72.80546626]
[1644542736764,48.30202046,105.38,105.3,68.05946626]
[1644542738767,54.30202046,105.38,105.3,68.05946626]
[1644542738968,48.30202046,105.38,105.3,68.05946626]
[1644542739369,62.55102046,105.38,105.3,68.05946626]
[1644542740469,48.30202046,105.38,105.3,68.05946626]
[1644542741169,48.30202046,105.38,105.3,68.30946626]
[1644542741569,1.34235937,105.4,105.3,68.30946626]
[1644542741769,1.34235937,105.4,105.33,14.2433]
[1644542741970,1.34235937,105.42,105.33,25.3973]
[1644542742173,1.34235937,105.43,105.34,4.768]
[1644542742390,1.34235937,105.43,105.35,58.8634]
[1644542742590,36.20974294,105.42,105.36,17.62025889]
[1644542742789,36.20974294,105.42,105.36,28.75025889]
[1644542743390,1.34235937,105.44,105.36,28.75025889]
[1644542743592,1.34235937,105.44,105.36,33.49325889]
[1644542743790,1.34235937,105.44,105.36,47.73155889]
[1644542744393,45.59276548,105.43,105.36,53.73155889]
[1644542745595,1.34235937,105.44,105.36,53.73155889]
[1644542746195,1.34235937,105.45,105.36,53.98155889]
[1644542746395,1.34235937,105.46,105.36,68.08775889]
[1644542746596,44.66749155,105.46,105.38,36.93007381]
[1644542746795,44.66749155,105.46,105.4,28.47525134]
[1644542747400,44.66749155,105.46,105.38,47.4537]
[1644542747598,1.34235937,105.46,105.38,47.4537]
[1644542747799,6.08435937,105.48,105.39,11.13]
[1644542747998,1.34235937,105.48,105.4,14.237]
[1644542748201,1.34235937,105.48,105.4,25.367]
[1644542748402,1.34235937,105.48,105.4,41.664]
[1644542748601,48.51667783,105.49,105.41,47.99763086]
[1644542748800,47.17431846,105.49,105.41,58.98863086]
[1644542749002,47.17431846,105.49,105.44,17.40769429]
[1644542749905,1.34235937,105.51,105.44,17.40769429]
[1644542750102,1.34235937,105.51,105.45,14.2296]
[1644542750306,1.34235937,105.52,105.45,20.4796]
[1644542750501,1.34235937,105.53,105.46,12.91267031]
[1644542750704,1.34235937,105.54,105.47,35.14924129]
[1644542750902,39.14623457,105.53,105.47,11.13]
[1644542751103,40.48859394,105.53,105.47,27.13577031]
[1644542751305,46.48859394,105.53,105.46,6.0]
[1644542751504,4.739,105.52,105.45,46.6596]
[1644542751702,6.08135937,105.52,105.45,46.6596]
[1644542751902,36.45966072,105.51,105.45,93.062623]
[1644542752302,36.45966072,105.51,105.45,107.290523]
[1644542752505,36.45966072,105.51,105.45,60.8875]
[1644542752705,36.45966072,105.51,105.45,46.6596]
[1644542753606,36.45966072,105.51,105.43,67.670123]
[1644542755506,36.45966072,105.51,105.43,25.3605]
[1644542755708,56.69196072,105.51,105.41,67.4806]
[1644542755910,56.69196072,105.51,105.41,70.3773]
[1644542755911,4.741,105.5,105.41,70.3773]
[1644542756508,48.0982968,105.49,105.41,70.3773]
[1644542756708,45.53212706,105.47,105.41,70.3773]
[1644542757612,45.53212706,105.47,105.41,84.6117]
[1644542757809,14.2349,105.49,105.42,21.2964951]
[1644542758009,6.08435937,105.5,105.42,29.07916541]
[1644542758010,4.742,105.5,105.42,29.07916541]
[1644542758210,1.34235937,105.51,105.43,15.871]
[1644542758409,25.30920368,105.54,105.43,40.80317031]
[1644542758410,1.34235937,105.52,105.43,40.80317031]
[1644542758612,1.39366992,105.54,105.43,47.05317031]
[1644542758810,7.34235937,105.54,105.43,46.80317031]
[1644542759010,40.24673166,105.53,105.44,41.94087145]
[1644542759208,46.32909103,105.53,105.45,11.13]
[1644542759414,60.55849103,105.53,105.45,25.3583]
[1644542759609,59.21613166,105.53,105.45,25.3583]
[1644542759809,60.55849103,105.53,105.45,11.13]
[1644542760410,60.60980158,105.53,105.45,11.13]
[1644542761812,60.60980158,105.53,105.44,14.2305]
[1644542762716,1.34235937,105.52,105.44,14.2305]
[1644542762913,41.460346,105.51,105.44,14.2305]
[1644542763113,1.34235937,105.52,105.45,21.37380628]
[1644542763317,1.39366992,105.54,105.46,14.2278]
[1644542763513,6.08135937,105.55,105.46,52.09867031]
[1644542763715,7.34235937,105.55,105.46,52.09867031]
[1644542763916,1.34235937,105.55,105.46,50.566]
[1644542764114,46.71814402,105.54,105.46,50.316]
[1644542764314,52.76945457,105.54,105.46,50.316]
[1644542764516,54.11181394,105.54,105.46,39.186]
[1644542765318,4.739,105.53,105.46,39.186]
[1644542765514,4.739,105.53,105.46,24.9582]
[1644542765515,20.31075937,105.53,105.46,24.9582]
[1644542765715,20.31075937,105.53,105.45,24.9526]
[1644542765916,1.34235937,105.52,105.45,24.9526]
[1644542766316,38.45533316,105.51,105.45,24.9526]
[1644542766716,38.45533316,105.51,105.43,24.1861]
[1644542766920,40.6865547,105.51,105.42,14.2324]
[1644542767116,40.6865547,105.51,105.39,28.5257]
[1644542767117,4.74,105.5,105.39,28.5257]
[1644542767317,1.34235937,105.49,105.39,23.7857]
[1644542767518,4.742,105.48,105.39,23.7857]
[1644542767718,54.11323496,105.48,105.39,67.87434155]
[1644542768020,55.45559433,105.48,105.39,67.87434155]
[1644542768220,54.11323496,105.48,105.39,82.11184155]
[1644542768621,55.45559433,105.48,105.39,82.11184155]
[1644542768821,60.19759433,105.48,105.39,82.11184155]
[1644542769121,60.19759433,105.48,105.39,38.0232]
[1644542769323,1.34235937,105.47,105.39,38.0232]
[1644542769725,21.58045937,105.47,105.39,38.0232]
[1644542770024,15.58045937,105.47,105.39,38.0232]
[1644542770224,36.23671886,105.46,105.39,38.0232]
[1644542770525,37.57907823,105.46,105.39,38.0232]
[1644542770923,51.81757823,105.46,105.39,23.7857]
[1644542771129,51.81757823,105.46,105.36,4.741]
[1644542771323,1.34235937,105.45,105.36,10.741]
[1644542771526,1.34235937,105.45,105.36,4.741]
[1644542771723,46.47382006,105.44,105.36,49.577679]
[1644542772125,46.47382006,105.44,105.36,10.741]
[1644542772726,46.47382006,105.44,105.37,14.2402]
[1644542773226,46.47382006,105.44,105.37,20.2402]
[1644542774328,52.47382006,105.44,105.37,14.2402]
[1644542775128,52.47382006,105.44,105.35,46.884]
[1644542775330,72.80087943,105.44,105.34,0.024]
[1644542775532,1.34235937,105.42,105.34,0.024]
[1644542775729,6.08635937,105.41,105.33,0.024]
[1644542775931,1.34235937,105.41,105.33,0.024]
[1644542776147,43.73989559,105.39,105.33,0.024]
[1644542776345,43.73989559,105.39,105.31,0.024]
[1644542777746,57.98839559,105.39,105.31,0.024]
[1644542778149,4.746,105.38,105.29,0.024]
[1644542778349,43.73989559,105.39,105.29,0.024]
[1644542778747,14.2502,105.37,105.29,0.024]
[1644542779249,4.746,105.36,105.27,0.024]
[1644542779649,2.23122154,105.35,105.25,0.024]
[1644542779952,48.32830505,105.33,105.25,0.024]
[1644542780149,14.2588,105.32,105.25,0.024]
[1644542780350,44.16973609,105.31,105.25,0.024]
[1644542780547,44.16973609,105.31,105.23,19.0273]
[1644542780749,44.16973609,105.31,105.23,25.0273]
[1644542782249,58.42933609,105.31,105.23,25.0273]
[1644542782449,44.16973609,105.31,105.23,25.0273]
[1644542782851,44.16973609,105.31,105.23,59.7329618]
[1644542784253,44.16973609,105.31,105.23,25.0273]
[1644542785255,44.16973609,105.31,105.24,43.6261274]
[1644542785455,44.16973609,105.31,105.24,57.9056274]
[1644542785655,44.16973609,105.31,105.24,63.9056274]
[1644542786060,44.16973609,105.31,105.24,20.2795]
[1644542786457,44.16973609,105.31,105.24,6.024]
[1644542786658,50.16973609,105.31,105.24,6.024]
[1644542787759,50.16973609,105.31,105.24,0.024]
[1644542790871,4.749,105.35,105.24,0.024]
[1644542791065,23.0532,105.38,105.24,0.024]
[1644542791066,27.8012,105.38,105.25,6.54138162]
[1644542791267,23.0532,105.38,105.26,11.154]
[1644542791466,23.0532,105.38,105.27,4.747]
[1644542791667,23.0532,105.38,105.28,11.154]
[1644542791864,35.56573921,105.37,105.29,14.2733]
[1644542792266,35.56573921,105.37,105.29,14.5233]
[1644542793066,40.31173921,105.37,105.29,14.5233]
[1644542794268,35.56573921,105.37,105.29,14.5233]
[1644542794671,41.56573921,105.37,105.29,14.5233]
[1644542796169,41.56573921,105.37,105.29,55.41967313]
[1644542796369,35.56573921,105.37,105.29,55.41967313]
[1644542796571,35.56573921,105.37,105.29,68.34305475]
[1644542796775,4.746,105.4,105.29,68.34305475]
[1644542796970,1.34235937,105.42,105.33,14.2447]
[1644542797171,1.34235937,105.43,105.33,14.2447]
[1644542797472,1.34235937,105.43,105.33,14.4947]
[1644542797671,14.2455,105.42,105.33,14.4947]
[1644542797871,60.83465707,105.42,105.33,14.4947]
[1644542798273,66.83465707,105.42,105.33,14.2447]
[1644542798577,68.17701644,105.42,105.33,14.2447]
[1644542798771,18.9897,105.41,105.33,14.2447]
[1644542798972,18.9897,105.41,105.31,14.2708]
[1644542799172,3.57358091,105.4,105.31,14.2708]
[1644542799374,2.23122154,105.4,105.31,14.5208]
[1644542799672,18.9897,105.41,105.32,36.44518392]
[1644542799872,42.57695049,105.4,105.32,36.69518392]
[1644542800072,42.57695049,105.4,105.33,14.245]
[1644542800276,42.57695049,105.4,105.34,28.96014123]
[1644542800475,42.57695049,105.4,105.33,14.245]
[1644542800674,47.32195049,105.4,105.33,14.245]
[1644542801276,47.32195049,105.4,105.33,14.495]
[1644542801475,47.32195049,105.4,105.34,35.69953087]
[1644542801675,42.57695049,105.4,105.34,49.94353087]
[1644542802594,42.57695049,105.4,105.34,14.244]
[1644542803497,42.57695049,105.4,105.34,49.08290774]
[1644542803699,48.57695049,105.4,105.34,49.08290774]
[1644542804596,15.58635937,105.42,105.34,49.08290774]
[1644542804797,1.34235937,105.42,105.34,66.46290774]
[1644542804997,1.34235937,105.43,105.34,66.46290774]
[1644542805197,1.34235937,105.45,105.34,68.25628936]
[1644542805397,1.34235937,105.45,105.38,14.2346]
[1644542805599,37.80042223,105.46,105.39,30.56641741]
[1644542805798,37.80042223,105.46,105.39,30.81641741]
[1644542806598,43.80042223,105.46,105.39,30.81641741]
[1644542806798,37.80042223,105.46,105.39,30.81641741]
[1644542807000,36.45806286,105.46,105.39,30.81641741]
[1644542807801,36.45806286,105.46,105.4,14.2356]
[1644542808803,36.45806286,105.46,105.41,34.83890774]
[1644542809201,36.45806286,105.46,105.41,49.07310774]
[1644542809802,1.34235937,105.48,105.41,49.07310774]
[1644542810004,6.08435937,105.49,105.41,49.07310774]
[1644542810204,1.34235937,105.5,105.41,49.32310774]
[1644542810405,0.05131055,105.49,105.42,24.2838]
[1644542810605,7.39366992,105.5,105.42,38.5165]
[1644542810804,39.00515299,105.49,105.42,38.7665]
[1644542811308,39.00515299,105.49,105.42,38.5165]
[1644542811706,39.00515299,105.49,105.42,38.7665]
[1644542811906,1.34235937,105.5,105.43,30.56641741]
[1644542812107,1.34235937,105.5,105.44,14.2305]
[1644542812305,0.05131055,105.51,105.44,14.4805]
[1644542812306,1.39366992,105.51,105.44,14.4805]
[1644542812505,1.34235937,105.51,105.44,44.3344]
[1644542812706,1.39366992,105.52,105.44,38.3344]
[1644542812905,40.93808186,105.51,105.44,14.2305]
[1644542813106,59.90978186,105.51,105.43,14.2321]
[1644542813311,1.34235937,105.5,105.43,14.2321]
[1644542813708,47.02044123,105.51,105.43,14.2321]
[1644542813909,0.05131055,105.52,105.43,31.6121]
[1644542813910,1.39366992,105.52,105.43,31.6121]
[1644542814107,1.34235937,105.52,105.43,131.0321]
[1644542814507,1.39366992,105.54,105.44,1.79338162]
[1644542814707,0.05131055,105.52,105.47,14.2203]
[1644542814907,0.05131055,105.53,105.48,24.48048546]
[1644542815109,39.89953464,105.54,105.48,24.48048546]
[1644542815308,39.84822409,105.54,105.48,24.48048546]
[1644542816412,1.34235937,105.56,105.48,29.46848546]
[1644542816607,1.39366992,105.57,105.48,24.73048546]
[1644542816808,1.39366992,105.57,105.49,14.2237]
[1644542817009,7.39366992,105.57,105.49,14.2237]
[1644542817210,7.39366992,105.57,105.49,14.4737]
[1644542817424,48.66927981,105.57,105.5,34.22820764]
[1644542817623,48.61796926,105.57,105.5,34.22820764]
[1644542818222,48.61796926,105.57,105.5,48.44960764]
[1644542820226,42.61796926,105.57,105.5,48.44960764]
[1644542820525,42.61796926,105.57,105.5,14.2214]
[1644542820727,48.61796926,105.57,105.48,43.9565]
[1644542820926,54.69832863,105.57,105.48,39.2195]
[1644542821529,68.92142863,105.57,105.46,63.75051486]
[1644542821730,1.34235937,105.55,105.46,74.88051486]
[1644542821928,47.653323,105.54,105.46,95.10661486]
[1644542822127,47.70463355,105.54,105.46,89.10661486]
[1644542822528,47.70463355,105.54,105.46,50.0724]
[1644542822730,64.16265509,105.54,105.45,24.4127]
[1644542822928,4.739,105.53,105.45,30.4127]
[1644542823129,4.79031055,105.53,105.45,30.4127]
[1644542823328,4.79031055,105.53,105.43,38.7181]
[1644542823530,40.12689551,105.52,105.43,24.4885]
[1644542823931,54.35649551,105.52,105.43,69.78959643]
[1644542824132,40.12689551,105.52,105.45,34.33462872]
[1644542824329,40.07558496,105.52,105.45,45.46462872]
[1644542824529,40.07558496,105.52,105.46,1.79338162]
[1644542824929,40.07558496,105.52,105.45,45.46462872]
[1644542825532,40.07558496,105.52,105.45,45.71462872]
[1644542825733,40.07558496,105.52,105.46,14.226]
[1644542827332,40.07558496,105.52,105.44,30.0984]
[1644542827534,40.12689551,105.52,105.44,36.3484]
[1644542827735,40.12689551,105.52,105.44,76.82115923]
[1644542829235,40.12689551,105.52,105.44,70.82115923]
[1644542829833,40.12689551,105.52,105.44,72.08115923]
[1644542830535,40.12689551,105.52,105.44,31.6084]
[1644542831336,54.35619551,105.52,105.44,31.3584]
[1644542831743,55.69855488,105.52,105.44,31.3584]
[1644542831934,55.64724433,105.52,105.44,54.99255577]
[1644542832135,60.38724433,105.52,105.44,54.99255577]
[1644542832343,59.04488496,105.52,105.44,48.99255577]
[1644542832536,60.43855488,105.52,105.44,48.99255577]
[1644542832736,60.30488496,105.52,105.44,25.3584]
[1644542832936,61.64724433,105.52,105.44,25.3584]
[1644542833139,61.69855488,105.52,105.44,25.3584]
[1644542833340,61.64724433,105.52,105.44,25.3584]
[1644542833540,66.38724433,105.52,105.44,25.3584]
[1644542833741,1.34235937,105.51,105.43,63.5763]
[1644542833941,63.80894916,105.5,105.43,55.3449]
[1644542835342,63.80894916,105.5,105.43,69.5765]
[1644542836770,69.80894916,105.5,105.43,69.8265]
[1644542837168,63.80894916,105.5,105.43,69.8265]
[1644542837769,63.80894916,105.5,105.43,69.5765]
[1644542838672,69.80894916,105.5,105.43,69.5765]
[1644542838972,1.34235937,105.49,105.43,69.5765]
[1644542839575,45.0241424,105.48,105.43,69.5765]
[1644542839773,45.0241424,105.48,105.43,14.2316]
[1644542839974,59.2580424,105.48,105.4,4.74]
[1644542840175,1.34235937,105.47,105.4,4.74]
[1644542840580,1.34235937,105.46,105.4,4.74]
[1644542840782,35.75871374,105.45,105.4,4.74]